fUSD/lending_fUSD_20251115
["ID","MTS","AMOUNT","RATE_DAILY","PERIOD"]
[394020704,1763197865754,-300.0,0.00030121,2]
[394020705,1763197865763,-300.0,0.00030124,2]
[394020706,1763197865771,-300.0,0.00030128,2]
[394020707,1763197865780,-1060.26632309,0.0003013,2]
[394020708,1763197865789,-13684.53143006,0.0003013,2]
[394020709,1763197865798,-626.2164635,0.0003013,2]
[394020710,1763197865806,-199.27620018,0.0003013,2]
[394020711,1763197865815,-1209.43936404,0.0003013,2]
[394020712,1763197865824,-7638.15854704,0.0003013,2]
[394020713,1763197865834,-2000.0,0.0003013,2]
[394020714,1763197865843,-200.0,0.0003013,2]
[394020715,1763197865853,-200.0,0.0003013,2]
[394020716,1763197865862,-202.6388046,0.00030136,10]
[394020717,1763197865871,-1111.26,0.00030137,2]
[394020718,1763197865879,-219.61,0.00030137,120]
[394020719,1763197865893,-500.0,0.00030137,15]
[394020720,1763197865902,-456.48367623,0.00030137,120]
[394020721,1763197865911,-317.32418381,0.00030137,120]
[394020722,1763197865921,-150.0,0.00030137,30]
[394020723,1763197865930,-9035.0,0.00030163,2]
[394020724,1763197865940,-152.0,0.00030363,24]
[394020725,1763197865949,-500.0,0.00030411,15]
[394020726,1763197865959,-200.0,0.00030431,2]
[394020727,1763197865968,-200.0,0.00030431,2]
[394020728,1763197865977,-150.0,0.00030521,30]
[394020729,1763197865986,-152.0,0.00030679,25]
[394020730,1763197865996,-500.0,0.00030685,15]
[394020731,1763197866005,-633.89,0.00030685,30]
[394020732,1763197866014,-200.0,0.00030736,2]
[394020733,1763197866023,-200.0,0.00030736,2]
[394020734,1763197866033,-200.77768268,0.00030775,120]
[394020735,1763197866043,-222.53513318,0.00030775,120]
[394020736,1763197866052,-301.01,0.000308,7]
[394020737,1763197866062,-2579.64200589,0.0003084,2]
[394020738,1763197866071,-153.773791,0.00030904,30]
[394020739,1763197866082,-66549.61264628,0.0003095,2]
[394020740,1763197866092,-500.0,0.00030959,15]
[394020741,1763197866101,-152.0,0.00030996,26]
[394020742,1763197866110,-337.36978817,0.00031,5]
[394020743,1763197866120,-160.0,0.00031,5]
[394020744,1763197866128,-36526.66,0.00031,7]
[394020745,1763197866138,-600.0,0.00031,2]
[394020746,1763197866147,-200.0,0.00031043,2]
[394020747,1763197866156,-200.0,0.00031043,2]
[394020748,1763197866166,-379.79,0.00031233,15]
[394020749,1763197866176,-152.0,0.00031312,27]
[394020750,1763197866186,-200.0,0.00031353,2]
[394020751,1763197866201,-200.0,0.00031353,2]
[394020752,1763197866210,-500.0,0.000314,120]
[394020753,1763197866220,-12240.52026419,0.0003143,4]
[394020754,1763197866229,-194.98570077,0.000315,2]
[394020755,1763197866238,-150.0,0.000315,2]
[394020756,1763197866247,-253.99571896,0.000315,2]
[394020757,1763197866256,-540.77,0.000315,30]
[394020758,1763197866265,-566.02,0.00031507,120]
[394020759,1763197866276,-577.4,0.000316,2]
[394020760,1763197866285,-152.0,0.00031629,28]
[394020761,1763197866294,-152.0,0.00031945,29]
[394020762,1763197866303,-2106.12664128,0.00032,2]
[394020763,1763197866312,-500.0,0.00032,120]
[394020764,1763197866321,-478.96003305,0.00032,30]
[394020765,1763197866332,-152.0,0.00032262,30]
[394020766,1763197866341,-882.88109498,0.000323,2]
[394020767,1763197866351,-2000.0,0.000323,2]
[394020768,1763197866360,-152.0,0.00032578,31]
[394020769,1763197866370,-4769.03912705,0.000328,2]
[394020770,1763197866379,-312.66665985,0.00032876,120]
[394020771,1763197866389,-349.03926618,0.00032876,2]
[394020772,1763197866399,-408.00993013,0.00032876,2]
[394020773,1763197866408,-472.83498185,0.00032876,2]
[394020774,1763197866417,-401.2934914,0.00032876,2]
[394020775,1763197866427,-500.0,0.00032876,2]
[394020776,1763197866436,-270.49982064,0.00032876,2]
[394020777,1763197866446,-431.07533214,0.00032876,2]
[394020778,1763197866455,-500.0,0.00032876,2]
[394020779,1763197866465,-288.63033052,0.00032876,2]
[394020780,1763197866474,-170.58488798,0.00032876,2]
[394020781,1763197866483,-482.44280771,0.00032876,2]
[394020782,1763197866492,-340.59,0.00032877,2]
[394020783,1763197866501,-1111.26,0.00032877,2]
[394020784,1763197866509,-230.412484,0.00032877,31]
[394020785,1763197866518,-230.412484,0.00032877,31]
[394020786,1763197866527,-230.412484,0.00032877,31]
[394020787,1763197866537,-230.412484,0.00032877,31]
[394020788,1763197866546,-230.412484,0.00032877,31]
[394020789,1763197866555,-230.412484,0.00032877,31]
[394020790,1763197866564,-230.412484,0.00032877,31]
[394020791,1763197866573,-230.412484,0.00032877,31]
[394020792,1763197866584,-230.412484,0.00032877,31]
[394020793,1763197866593,-230.412484,0.00032877,31]
[394020794,1763197866602,-230.412484,0.00032877,31]
[394020795,1763197866611,-230.412484,0.00032877,31]
[394020796,1763197866621,-230.412484,0.00032877,31]
[394020797,1763197866630,-230.412484,0.00032877,31]
[394020798,1763197866639,-230.412484,0.00032877,31]
[394020799,1763197866648,-230.412484,0.00032877,31]
[394020800,1763197866657,-230.412484,0.00032877,31]
[394020801,1763197866666,-230.412484,0.00032877,31]
[394020802,1763197866675,-230.412484,0.00032877,31]
[394020803,1763197866684,-230.412474,0.00032877,31]
[394020804,1763197866693,-500.0,0.00032877,7]
[394020805,1763197866703,-500.0,0.00032877,7]
[394020806,1763197866712,-500.0,0.00032877,7]
[394020807,1763197866722,-500.0,0.00032877,7]
[394020808,1763197866733,-179.48702735,0.00032877,7]
[394020809,1763197866744,-242.16522526,0.00032877,7]
[394020810,1763197866753,-152.0,0.00032895,32]
[394020811,1763197866763,-1538.85085272,0.00033,2]
[394020812,1763197866773,-50933.74007209,0.00033,2]
[394020813,1763197866784,-151.62973645,0.00033,2]
[394020814,1763197866794,-890.88407612,0.00033,2]
[394020815,1763197866804,-156.0,0.00033,60]
[394020816,1763197866814,-200.0,0.00033,120]
[394020817,1763197866825,-168.042765,0.00033,14]
[394020818,1763197866841,-3430.0,0.00033,2]
[394020819,1763197866859,-608.0,0.00033,2]
[394020820,1763197866870,-1318.0,0.00033,2]
[394020821,1763197866881,-575.0,0.00033,2]
[394020822,1763197866891,-1598.0,0.00033,2]
[394020823,1763197866901,-821.0,0.00033,2]
[394020824,1763197866911,-793.0,0.00033,2]
[394020825,1763197866920,-1275.0,0.00033,2]
[394020826,1763197866929,-1603.0,0.00033,2]
[394020827,1763197866939,-560.0,0.00033,2]
[394020828,1763197866949,-6487.0,0.00033,2]
[394020829,1763197866958,-9499.0,0.00033098,3]
[394020830,1763197866968,-540.77,0.000331,30]
[394020831,1763197866978,-36526.66,0.000331,14]
[394020832,1763197866987,-1000.0,0.00033165,2]
[394020833,1763197866997,-577.4,0.000332,2]
[394020834,1763197867006,-152.0,0.00033211,33]
[394020835,1763197867015,-1196.40856648,0.000335,2]
[394020836,1763197867025,-152.0,0.00033528,34]
[394020837,1763197867034,-152.0,0.00033844,35]
[394020838,1763197867043,-211.50740028,0.00033939,60]
[394020839,1763197867052,-976.96,0.00034,2]
[394020840,1763197867061,-500.0,0.00034,120]
[394020841,1763197867071,-152.0,0.00034161,36]
[394020842,1763197867085,-301.01,0.000344,14]
[394020843,1763197867095,-152.0,0.00034477,37]
[394020844,1763197867105,-1708.81531663,0.0003449,2]
[394020845,1763197867115,-433.0,0.0003449,10]
[394020846,1763197867124,-1630.41,0.00034751,30]
[394020847,1763197867133,-152.0,0.00034794,38]
[394020848,1763197867143,-216.74357883,0.00034849,30]
[394020849,1763197867152,-663.82437337,0.000349,2]
[394020850,1763197867163,-540.77,0.000349,30]
[394020851,1763197867174,-196.96920315,0.000349,120]
[394020852,1763197867183,-216.74357883,0.00034986,30]
[394020853,1763197867193,-1002.0,0.00035,12]
[394020854,1763197867202,-402.05657263,0.00035,2]
[394020855,1763197867215,-1221.61064649,0.00035,2]
[394020856,1763197867224,-301.22405655,0.00035,2]
[394020857,1763197867233,-5435.31,0.00035,120]
[394020858,1763197867242,-1000.0,0.00035,5]
[394020859,1763197867253,-170.90146133,0.00035,30]
[394020860,1763197867262,-1445.50148128,0.00035,30]
[394020861,1763197867271,-220.75478372,0.00035,30]
[394020862,1763197867280,-300.0,0.00035,120]
[394020863,1763197867289,-235.65,0.00035,2]
[394020864,1763197867298,-300.0,0.00035,7]
[394020865,1763197867307,-36526.66,0.000351,14]
[394020866,1763197867316,-152.0,0.0003511,39]
[394020867,1763197867325,-216.74357883,0.00035123,30]
[394020868,1763197867336,-216.74357883,0.0003526,30]
[394020869,1763197867345,-162.0,0.0003538,2]
[394020870,1763197867354,-216.74357883,0.00035397,30]
[394020871,1763197867363,-152.0,0.00035427,40]
[394020872,1763197867373,-566.02,0.00035445,120]
[394020873,1763197867382,-577.4,0.000355,2]
[394020874,1763197867391,-216.74357883,0.00035534,30]
[394020875,1763197867400,-377.6,0.0003555,14]
[394020876,1763197867410,-198.32164368,0.0003561,120]
[394020877,1763197867418,-1111.26,0.00035616,2]
[394020878,1763197867427,-216.74357883,0.00035671,30]
[394020879,1763197867436,-152.0,0.00035743,41]
[394020880,1763197867445,-217.79350565,0.00035743,5]
[394020881,1763197867455,-170.76504258,0.000358,5]
[394020882,1763197867464,-216.74357883,0.00035808,30]
[394020883,1763197867473,-216.74357883,0.00035945,30]
[394020884,1763197867482,-206.25969159,0.00035993,120]
[394020885,1763197867490,-222.27224169,0.00035993,120]
[394020886,1763197867500,-206.25969159,0.00035993,120]
[394020887,1763197867511,-1134.13706,0.00036,2]
[394020888,1763197867521,-5000.0,0.00036,2]
[394020889,1763197867530,-5000.0,0.00036,2]
[394020890,1763197867539,-5000.0,0.00036,2]
[394020891,1763197867548,-5000.0,0.00036,2]
[394020892,1763197867557,-5000.0,0.00036,2]
[394020893,1763197867566,-518.577227,0.00036,2]
[394020894,1763197867576,-1001.61,0.00036,2]
[394020895,1763197867589,-355.1629041,0.00036,4]
[394020896,1763197867598,-231678.32113837,0.00036,2]
[394020897,1763197867611,-10720.82641449,0.00036,2]
[394020898,1763197867620,-156.0,0.00036,36]
[394020899,1763197867629,-500.0,0.00036,120]
[394020900,1763197867638,-290.8093509,0.00036,30]
[394020901,1763197867647,-2000.0,0.00036,2]
[394020902,1763197867656,-3430.0,0.00036,2]
[394020903,1763197867666,-608.0,0.00036,2]
[394020904,1763197867675,-1318.0,0.00036,2]
[394020905,1763197867686,-575.0,0.00036,2]
[394020906,1763197867696,-1598.0,0.00036,2]
[394020907,1763197867707,-821.0,0.00036,2]
[394020908,1763197867716,-793.0,0.00036,2]
[394020909,1763197867726,-1275.0,0.00036,2]
[394020910,1763197867735,-1603.0,0.00036,2]
[394020911,1763197867744,-560.0,0.00036,2]
[394020912,1763197867753,-6487.0,0.00036,2]
[394020913,1763197867762,-2533.72,0.00036066,2]
[394020914,1763197867772,-68364.1992284,0.000361,2]
[394020915,1763197867781,-216.74357883,0.0003611,30]
[394020916,1763197867790,-12647.77,0.00036127,2]
[394020917,1763197867799,-2500.16,0.0003618,2]
[394020918,1763197867809,-5000.0,0.00036203,2]
[394020919,1763197867818,-4575.24,0.00036206,2]
[394020920,1763197867827,-4408.58,0.00036206,2]
[394020921,1763197867842,-5000.0,0.00036222,2]
[394020922,1763197867851,-5000.0,0.00036225,2]
[394020923,1763197867860,-5000.0,0.00036235,2]
[394020924,1763197867869,-656.38,0.00036244,2]
[394020925,1763197867878,-216.74357883,0.00036247,30]
[394020926,1763197867888,-25000.0,0.00036252,2]
[394020927,1763197867897,-5000.0,0.00036258,2]
[394020928,1763197867906,-5000.0,0.00036273,2]
[394020929,1763197867915,-2500.15,0.00036291,2]
[394020930,1763197867924,-4520.9,0.00036321,2]
[394020931,1763197867933,-5000.0,0.0003633,2]
[394020932,1763197867943,-5000.0,0.00036336,2]
[394020933,1763197867952,-2500.0,0.00036342,2]
[394020934,1763197867961,-5000.0,0.00036358,2]
[394020935,1763197867970,-1470.34,0.00036364,2]
[394020936,1763197867979,-25000.0,0.00036365,2]
[394020937,1763197867988,-216.74357883,0.00036384,30]
[394020938,1763197867997,-5000.0,0.00036391,2]
[394020939,1763197868007,-25000.0,0.00036426,2]
[394020940,1763197868016,-5000.0,0.00036435,2]
[394020941,1763197868026,-25000.0,0.00036455,2]
[394020942,1763197868036,-2500.16,0.00036455,2]
[394020943,1763197868045,-5000.0,0.00036479,2]
[394020944,1763197868054,-443.05,0.00036492,2]
[394020945,1763197868063,-5000.0,0.00036494,2]
[394020946,1763197868073,-540.77,0.000365,30]
[394020947,1763197868084,-2228.52,0.00036531,2]
[394020948,1763197868094,-2500.16,0.00036533,2]
[394020949,1763197868104,-5000.0,0.00036549,2]
[394020950,1763197868113,-5000.0,0.00036559,2]
[394020951,1763197868123,-5000.0,0.00036581,2]
[394020952,1763197868133,-301.01,0.000366,14]
[394020953,1763197868143,-5000.0,0.00036606,2]
[394020954,1763197868153,-5000.0,0.00036611,2]
[394020955,1763197868162,-267.59,0.0003667,120]
[394020956,1763197868172,-5000.0,0.00036675,2]
[394020957,1763197868182,-5000.0,0.00036688,2]
[394020958,1763197868194,-5000.0,0.00036693,2]
[394020959,1763197868207,-577.4,0.000367,2]
[394020960,1763197868218,-1001.61,0.0003672,2]
[394020961,1763197868227,-5000.0,0.00036724,2]
[394020962,1763197868237,-25000.0,0.00036734,2]
[394020963,1763197868247,-5000.0,0.00036743,2]
[394020964,1763197868257,-5000.0,0.00036743,2]
[394020965,1763197868267,-5000.0,0.00036793,2]
[394020966,1763197868276,-1589.29639247,0.000368,2]
[394020967,1763197868287,-25000.0,0.0003689,2]
[394020968,1763197868296,-213.0,0.0003689,30]
[394020969,1763197868305,-25000.0,0.00036897,2]
[394020970,1763197868315,-13941.51024304,0.0003691,2]
[394020971,1763197868324,-5000.0,0.00036931,2]
[394020972,1763197868336,-5000.0,0.0003695,2]
[394020973,1763197868345,-5000.0,0.00036951,2]
[394020974,1763197868355,-5000.0,0.00036973,2]
[394020975,1763197868365,-500.0,0.00036986,15]
[394020976,1763197868374,-500.0,0.00036986,15]
[394020977,1763197868384,-500.0,0.00036986,15]
[394020978,1763197868393,-344.6050415,0.00036986,15]
[394020979,1763197868402,-204.95611572,0.00036986,15]
[394020980,1763197868412,-5000.0,0.00036987,2]
[394020981,1763197868421,-1578.20731483,0.00037,5]
[394020982,1763197868431,-8800.82948064,0.00037,2]
[394020983,1763197868440,-163.41631499,0.00037,2]
[394020984,1763197868450,-156.0,0.00037,120]
[394020985,1763197868459,-400.0,0.00037,120]
[394020986,1763197868469,-11183.02391147,0.0003716,2]
[394020987,1763197868478,-532.06739818,0.000372,120]
[394020988,1763197868489,-532.06739816,0.000372,120]
[394020989,1763197868498,-532.06739816,0.000372,120]
[394020990,1763197868508,-532.06739816,0.000372,120]
[394020991,1763197868517,-532.06739816,0.000372,120]
[394020992,1763197868527,-1001.61,0.0003744,2]
[394020993,1763197868536,-4276.11823694,0.0003759,2]
[394020994,1763197868545,-500.0,0.00037638,30]
[394020995,1763197868554,-500.0,0.00037708,30]
[394020996,1763197868563,-3309.84697457,0.00037745,2]
[394020997,1763197868572,-182.13,0.00037808,60]
[394020998,1763197868582,-502.89433883,0.00037808,30]
[394020999,1763197868594,-206.25969159,0.0003782,120]
[394021000,1763197868604,-206.25969159,0.0003782,120]
[394021001,1763197868613,-182.13,0.00037839,80]
[394021002,1763197868623,-182.13,0.00037869,100]
[394021003,1763197868634,-199.46898845,0.0003788,2]
[394021004,1763197868643,-182.13,0.000379,120]
[394021005,1763197868653,-88277.07296859,0.0003797,2]
[394021006,1763197868663,-339.72115817,0.00037995,30]
[394021007,1763197868673,-2000.0,0.00038,2]
[394021008,1763197868682,-203140.58519018,0.00038,2]
[394021009,1763197868692,-1111.67222399,0.00038,120]
[394021010,1763197868702,-1083.59757574,0.00038,2]
[394021011,1763197868711,-1000.0,0.00038,11]
[394021012,1763197868720,-577.4,0.00038,2]
[394021013,1763197868730,-1084.26048045,0.00038,30]
[394021014,1763197868739,-500.0,0.00038,120]
[394021015,1763197868748,-160.0,0.00038,21]
[394021016,1763197868759,-157607.68844599,0.00038,2]
[394021017,1763197868768,-182.935204,0.00038,2]
[394021018,1763197868778,-519.62868905,0.00038077,30]
[394021019,1763197868787,-240.14436073,0.000381,33]
[394021020,1763197868796,-1001.61,0.0003816,2]
[394021021,1763197868805,-500.0,0.00038241,30]
[394021022,1763197868814,-1000.0,0.00038356,2]
[394021023,1763197868823,-500.0,0.00038356,2]
[394021024,1763197868832,-500.0,0.00038356,2]
[394021025,1763197868844,-500.0,0.00038356,2]
[394021026,1763197868853,-500.0,0.00038356,2]
[394021027,1763197868862,-500.0,0.00038356,2]
[394021028,1763197868871,-500.0,0.00038356,2]
[394021029,1763197869045,-500.0,0.00038356,2]
[394021030,1763197869054,-637.4,0.00038356,2]
[394021031,1763197869068,-482.69062151,0.00038356,2]
[394021032,1763197869077,-500.0,0.00038356,2]
[394021033,1763197869088,-457.87305035,0.00038356,2]
[394021034,1763197869097,-500.0,0.00038356,120]
[394021035,1763197869106,-500.0,0.00038356,120]
[394021036,1763197869116,-500.0,0.00038356,120]
[394021037,1763197869125,-500.0,0.00038356,120]
[394021038,1763197869134,-620.00080176,0.00038356,120]
[394021039,1763197869144,-500.0,0.00038356,2]
[394021040,1763197869153,-500.0,0.00038356,2]
[394021041,1763197869162,-6032.34,0.00038356,2]
[394021042,1763197869171,-500.0,0.00038356,2]
[394021043,1763197869180,-300.0,0.00038356,2]
[394021044,1763197869190,-350.4,0.00038356,2]
[394021045,1763197869199,-500.0,0.00038356,2]
[394021046,1763197869213,-1324.9,0.00038356,2]
[394021047,1763197869223,-500.0,0.00038356,10]
[394021048,1763197869232,-500.0,0.00038356,2]
[394021049,1763197869242,-500.0,0.00038356,15]
[394021050,1763197869253,-311.797568,0.00038356,120]
[394021051,1763197869263,-311.797568,0.00038356,120]
[394021052,1763197869274,-311.797568,0.00038356,120]
[394021053,1763197869285,-311.797568,0.00038356,120]
[394021054,1763197869295,-311.797568,0.00038356,120]
[394021055,1763197869305,-311.797568,0.00038356,120]
[394021056,1763197869315,-311.797568,0.00038356,120]
[394021057,1763197869325,-311.797568,0.00038356,120]
[394021058,1763197869337,-311.797568,0.00038356,120]
[394021059,1763197869347,-311.797568,0.00038356,120]
[394021060,1763197869358,-311.797568,0.00038356,120]
[394021061,1763197869368,-311.797568,0.00038356,120]
[394021062,1763197869379,-311.797568,0.00038356,120]
[394021063,1763197869389,-311.797568,0.00038356,120]
[394021064,1763197869399,-311.797568,0.00038356,120]
[394021065,1763197869410,-311.797568,0.00038356,120]
[394021066,1763197869419,-311.797568,0.00038356,120]
[394021067,1763197869429,-311.797568,0.00038356,120]
[394021068,1763197869439,-311.797568,0.00038356,120]
[394021069,1763197869449,-311.797563,0.00038356,120]
[394021070,1763197869459,-301.01,0.000384,14]
[394021071,1763197869468,-200.0,0.00038507,6]
[394021072,1763197869478,-200.0,0.00038507,6]
[394021073,1763197869488,-200.0,0.00038507,6]
[394021074,1763197869499,-200.0,0.00038507,6]
[394021075,1763197869509,-200.0,0.00038509,6]
[394021076,1763197869518,-152.0,0.00038538,2]
[394021077,1763197869527,-1000.0,0.0003863,2]
[394021078,1763197869537,-500.0,0.0003863,2]
[394021079,1763197869546,-500.0,0.0003863,2]
[394021080,1763197869556,-500.0,0.0003863,2]
[394021081,1763197869565,-500.0,0.0003863,2]
[394021082,1763197869575,-500.0,0.0003863,2]
[394021083,1763197869588,-500.0,0.0003863,2]
[394021084,1763197869598,-500.0,0.0003863,2]
[394021085,1763197869608,-637.4,0.0003863,2]
[394021086,1763197869617,-500.0,0.0003863,2]
[394021087,1763197869627,-500.0,0.0003863,2]
[394021088,1763197869637,-500.0,0.0003863,2]
[394021089,1763197869647,-6032.34,0.0003863,2]
[394021090,1763197869657,-500.0,0.0003863,2]
[394021091,1763197869667,-300.0,0.0003863,2]
[394021092,1763197869678,-350.4,0.0003863,2]
[394021093,1763197869688,-500.0,0.0003863,2]
[394021094,1763197869698,-1324.9,0.0003863,2]
[394021095,1763197869707,-500.0,0.0003863,10]
[394021096,1763197869717,-500.0,0.0003863,2]
[394021097,1763197869727,-501.86584851,0.0003863,15]
[394021098,1763197869737,-712.0,0.0003863,6]
[394021099,1763197869746,-400.1,0.00038811,120]
[394021100,1763197869755,-500.0,0.00038832,30]
[394021101,1763197869764,-314.84321906,0.0003884,50]
[394021102,1763197869773,-1001.61,0.0003888,2]
[394021103,1763197869783,-182.165,0.00038888,30]
[394021104,1763197869792,-903.88038077,0.000389,31]
[394021105,1763197869801,-281.91847866,0.000389,120]
[394021106,1763197869810,-1000.0,0.00038904,2]
[394021107,1763197869824,-500.0,0.00038904,2]
[394021108,1763197869837,-500.0,0.00038904,2]
[394021109,1763197869846,-500.0,0.00038904,2]
[394021110,1763197869856,-500.0,0.00038904,2]
[394021111,1763197869866,-500.0,0.00038904,2]
[394021112,1763197869876,-500.0,0.00038904,2]
[394021113,1763197869887,-500.0,0.00038904,2]
[394021114,1763197869897,-637.4,0.00038904,2]
[394021115,1763197869906,-500.0,0.00038904,2]
[394021116,1763197869915,-500.0,0.00038904,2]
[394021117,1763197869926,-500.0,0.00038904,2]
[394021118,1763197869934,-6032.34,0.00038904,2]
[394021119,1763197869943,-500.0,0.00038904,2]
[394021120,1763197869951,-300.0,0.00038904,2]
[394021121,1763197869961,-350.4,0.00038904,2]
[394021122,1763197869970,-500.0,0.00038904,2]
[394021123,1763197869979,-1324.9,0.00038904,2]
[394021124,1763197869988,-500.0,0.00038904,10]
[394021125,1763197869998,-500.0,0.00038904,2]
[394021126,1763197870007,-172.607001,0.00038904,60]
[394021127,1763197870016,-172.607001,0.00038904,60]
[394021128,1763197870025,-172.607001,0.00038904,60]
[394021129,1763197870034,-172.607001,0.00038904,60]
[394021130,1763197870043,-172.607001,0.00038904,60]
[394021131,1763197870052,-172.607001,0.00038904,60]
[394021132,1763197870062,-172.607001,0.00038904,60]
[394021133,1763197870071,-172.607001,0.00038904,60]
[394021134,1763197870080,-172.607001,0.00038904,60]
[394021135,1763197870093,-172.607001,0.00038904,60]
[394021136,1763197870102,-172.607001,0.00038904,60]
[394021137,1763197870111,-172.607001,0.00038904,60]
[394021138,1763197870120,-172.607001,0.00038904,60]
[394021139,1763197870129,-172.607001,0.00038904,60]
[394021140,1763197870139,-172.607001,0.00038904,60]
[394021141,1763197870148,-172.607001,0.00038904,60]
[394021142,1763197870158,-172.607001,0.00038904,60]
[394021143,1763197870167,-172.607001,0.00038904,60]
[394021144,1763197870177,-172.607001,0.00038904,60]
[394021145,1763197870186,-172.607005,0.00038904,60]
[394021146,1763197870199,-213.0,0.0003891,30]
[394021147,1763197870208,-400.1,0.00038911,120]
[394021148,1763197870218,-156.37397192,0.00039,3]
[394021149,1763197870227,-958.0,0.00039,7]
[394021150,1763197870239,-1000.0,0.00039,18]
[394021151,1763197870248,-1000.0,0.00039,18]
[394021152,1763197870258,-74425.4193049,0.00039,2]
[394021153,1763197870267,-1000.0,0.00039,41]
[394021154,1763197870278,-199.23340204,0.00039,30]
[394021155,1763197870287,-2669.90801121,0.00039,2]
[394021156,1763197870296,-44388.0,0.00039,2]
[394021157,1763197870306,-182.0,0.00039,30]
[394021158,1763197870315,-3430.0,0.00039,2]
[394021159,1763197870324,-608.0,0.00039,2]
[394021160,1763197870333,-1318.0,0.00039,2]
[394021161,1763197870344,-575.0,0.00039,2]
[394021162,1763197870354,-1598.0,0.00039,2]
[394021163,1763197870363,-821.0,0.00039,2]
[394021164,1763197870372,-793.0,0.00039,2]
[394021165,1763197870380,-1275.0,0.00039,2]
[394021166,1763197870389,-1603.0,0.00039,2]
[394021167,1763197870398,-560.0,0.00039,2]
[394021168,1763197870407,-6487.0,0.00039,2]
[394021169,1763197870416,-400.1,0.00039011,120]
[394021170,1763197870425,-977.99053418,0.00039015,2]
[394021171,1763197870435,-601.93,0.00039041,2]
[394021172,1763197870444,-400.1,0.00039111,120]
[394021173,1763197870453,-1000.0,0.00039178,2]
[394021174,1763197870462,-500.0,0.00039178,2]
[394021175,1763197870472,-500.0,0.00039178,2]
[394021176,1763197870481,-500.0,0.00039178,2]
[394021177,1763197870490,-500.0,0.00039178,2]
[394021178,1763197870499,-500.0,0.00039178,2]
[394021179,1763197870508,-500.0,0.00039178,2]
[394021180,1763197870517,-500.0,0.00039178,2]
[394021181,1763197870526,-637.4,0.00039178,2]
[394021182,1763197870535,-190.35785444,0.00039178,2]
[394021183,1763197870544,-500.0,0.00039178,2]
[394021184,1763197870554,-500.0,0.00039178,2]
[394021185,1763197870563,-6032.34,0.00039178,2]
[394021186,1763197870572,-500.0,0.00039178,2]
[394021187,1763197870582,-300.0,0.00039178,2]
[394021188,1763197870595,-350.4,0.00039178,2]
[394021189,1763197870604,-500.0,0.00039178,2]
[394021190,1763197870613,-1324.9,0.00039178,2]
[394021191,1763197870626,-500.0,0.00039178,10]
[394021192,1763197870635,-500.0,0.00039178,2]
[394021193,1763197870644,-1000.0,0.0003919,10]
[394021194,1763197870653,-400.1,0.00039211,120]
[394021195,1763197870663,-1000.0,0.000393,2]
[394021196,1763197870671,-400.1,0.00039311,120]
[394021197,1763197870681,-566.02,0.00039384,120]
[394021198,1763197870689,-400.1,0.00039411,120]
[394021199,1763197870698,-158.61541657,0.00039451,7]
[394021200,1763197870708,-1000.0,0.00039452,2]
[394021201,1763197870717,-500.0,0.00039452,2]
[394021202,1763197870726,-500.0,0.00039452,2]
[394021203,1763197870735,-500.0,0.00039452,2]